Cogmind - Beta 15 @@@ ROGUE MODE // 2025.09.12 @ 19:54:32 Player: Goddess Complex Result: Destroyed by B-75 Beast via exploding Nuclear Reactor Performance ------------- Evolutions (4) 2000 Regions Visited (6) 1200 Robots Destroyed (51) 255 Value Destroyed (1751) 1751 Prototype IDs (1) 20 Alien Tech Used (0) 0 Bonus (500) 500 TOTAL SCORE: 5726 Bonus ------- Entered DSFs 500 Cogmind --------- Core Integrity 0/850 Matter 11/300 Energy 100/100 System Corruption 11% Temperature Cool (11) Movement Core (200) Ox3 Location -6/Factory Parts ------- > --- POWER (2) -------- Fusion Compressor Fusion Compressor > --- PROPULSION (5) --- (None) > --- UTILITY (4) ------ (None) > --- WEAPON (4) ------- (None) > --- INVENTORY (5) ---- Angular Momentum Engine Advanced Terrain Scanner Improved Medium Armor Plating Plasma Rifle Improved EM Pulse Cannon Peak State ------------ > --- POWER ------------ Heavy Ion Engine Light Nuclear Core > --- PROPULSION ------- VSS Leg Flexi-carbon Leg Flexi-carbon Leg Flexi-carbon Leg Flexi-carbon Leg > --- UTILITY ---------- Cryofiber Web Medium Storage Unit Improved Targeting Computer > --- WEAPON ----------- Minigun High-powered Shotgun Gauss Cannon Gauss Cannon > --- INVENTORY -------- Light Nuclear Core Aluminum Leg Aluminum Leg Cryofiber Web Core Analyzer Hardened Medium Armor Plating Improved Medium Armor Plating Particle Gun High-powered Shotgun [Rating: 51] Favorites ----------- Power Light Deuterium Engine Engine Light Deuterium Engine Power Core Nuclear Core Propulsion Aluminum Leg Treads Light Treads Leg Aluminum Leg Utility Improved Targeting Computer Device Cryofiber Web Storage Medium Storage Unit Processor Improved Targeting Computer Protection Improved Medium Armor Plating Weapon Gauss Cannon Energy Gun Medium Laser Energy Cannon Particle Cannon Ballistic Gun High-powered Shotgun Ballistic Cannon Gauss Cannon Build | -11 -10 -9 -8 -7 -7 -6 ------- Run | Yrd Mat Mat Mat Fac DSF Fac Slots Evolved 8 | . . 2 2 2 . 2 Power 1 | . . 1 . . . . Propulsion 3 | . . 1 1 . . 1 Utility 2 | . . . . 1 . 1 Weapon 2 | . . . 1 1 . . Parts Attached 62 | 6 2 12 18 2 8 14 Power 12 | 1 . 4 1 . 2 4 Engine 6 | 1 . 4 . . 1 . Core 6 | . . . 1 . 1 4 Reactor . | . . . . . . . Propulsion 24 | 2 . 2 12 . 5 3 Treads 7 | . . . 7 . . . Leg 17 | 2 . 2 5 . 5 3 Wheel . | . . . . . . . Hover . | . . . . . . . Flight . | . . . . . . . Utility 8 | 1 1 1 . 1 1 3 Device 1 | . . . . . 1 . Storage 2 | 1 . 1 . . . . Processor 2 | . 1 . . . . 1 Hackware . | . . . . . . . Protection 3 | . . . . 1 . 2 Artifact . | . . . . . . . Weapon 18 | 2 1 5 5 1 . 4 Energy Gun 5 | 1 . 3 . . . 1 Energy Cannon 2 | . . 2 . . . . Ballistic Gun 6 | 1 . . 2 . . 3 Ballistic Cannon 5 | . 1 . 3 1 . . Launcher . | . . . . . . . Special Weapon . | . . . . . . . Impact Weapon . | . . . . . . . Slashing Weapon . | . . . . . . . Piercing Weapon . | . . . . . . . Special Melee Weapon . | . . . . . . . Unidentified Prototypes 1 | . . . . . 1 . Parts Lost 28 | . . 1 8 . 5 14 Power 7 | . . . 1 . 3 3 Propulsion 11 | . . . 5 . 1 5 Utility 5 | . . . . . 1 4 Weapon 5 | . . 1 2 . . 2 Highest Loss Streak 10 | . . 1 2 . 2 10 To Critical Strikes . | . . . . . . . Average Backups 8 | . 6 6 9 8 9 6 Power 1 | . 1 1 1 2 . . Propulsion 1 | . 1 . 1 4 4 . Utility 3 | . 1 2 3 2 3 4 Weapon 2 | . 2 2 3 . 1 1 Tool/Special . | . . . . . . . Unused Backups 20 | . 1 1 8 . 2 8 Power 3 | . . . 2 . . 1 Propulsion 1 | . . . . . 1 . Utility 12 | . 1 1 4 . 1 5 Weapon 4 | . . . 2 . . 2 Tool/Special . | . . . . . . . Average Slot Usage (%) 93 | . 98 92 97 99 97 66 Engine 13 | . 14 17 16 7 8 3 Core 2 | . . . 1 7 4 5 Treads 9 | . . . 21 . . . Leg 21 | . 28 31 12 30 29 20 Storage 9 | . 14 11 9 7 7 4 Processor 9 | . 12 11 9 7 7 6 Energy Gun 4 | . 14 12 . . . . Energy Cannon 2 | . . 3 5 . . . Ballistic Gun 9 | . 2 . 11 15 15 12 Ballistic Cannon 9 | . 11 4 10 14 15 3 Peak Build Rating 51 | 6 8 16 27 33 48 51 Average Rating 21 | 4 7 11 24 32 34 32 On Entrance 19 | . 6 8 16 25 33 48 Naked Turns 25 | . . . . . . 25 Heaviest Build 52 | 13 15 27 40 49 52 47 Greatest Support 82 | 20 20 30 82 40 80 72 Greatest Overweight (x) 5 | 3 . 1 3 1 1 5 Average Overweight (x) . | . . . . 1 . . Largest Inventory Capacity 10 | 8 8 10 10 10 10 10 Average Capacity 9 | 7 8 9 10 10 10 8 Most Carried 10 | 2 8 10 10 9 10 10 Average Carried 8 | 1 6 6 9 8 9 7 Final Capacity 10 | 8 8 10 10 10 10 5 Final Carried 10 | 2 8 10 10 8 10 5 Class Distribution -------------------- 53% | Scavenger-Gunner 36% | Mutant 7% | Gunner Dominant Class ---------------- Mutant | -10/Materials Mutant | -9/Materials Scavenger-Gunner | -8/Materials Scavenger-Gunner | -7/Factory Scavenger-Gunner | -7/DSF Scavenger-Gunner | -6/Factory Resources | -11 -10 -9 -8 -7 -7 -6 ----------- Run | Yrd Mat Mat Mat Fac DSF Fac Matter Collected 1726 | 238 70 238 718 . 345 117 Remotely . | . . . . . . . Salvage Created 1637 | . 80 382 776 . 311 88 Parts 99 | . 5 17 46 . 20 11 Haulers Intercepted 2 | . . . 2 . . . Recyclers Shooed . | . . . . . . . Parts Field Recycled . | . . . . . . . Retrieved Matter . | . . . . . . . Parts Self-Destructed . | . . . . . . . Prevented . | . . . . . . . Kills | -11 -10 -9 -8 -7 -7 -6 ------- Run | Yrd Mat Mat Mat Fac DSF Fac Combat Hostiles Destroyed 46 | . 4 10 19 . 9 4 Guns 21 | . 2 5 9 . 2 3 Cannons 24 | . 2 4 10 . 7 1 Classes Destroyed 11 | . 2 2 5 . 1 1 Builder 1 | . . . 1 . . . Hauler 2 | . . . 2 . . . Recycler 1 | . . . 1 . . . Operator 1 | . . . . . . 1 Swarmer 16 | . 3 3 3 . 3 4 Grunt 14 | . 1 1 9 . 3 . Brawler 1 | . . . 1 . . . Duelist 2 | . . 1 1 . . . Sentry 8 | . . 5 3 . . . Specialist 4 | . . . 2 . 2 . Heavy 1 | . . . . . 1 . Best Kill Streak 6 | . 3 4 3 . 6 4 Combat Bots Only 6 | . 3 4 3 . 6 4 Max Kills in Single Turn 2 | . 1 1 2 . 2 1 Gunslinging . | . . . . . . . Exploded . | . . . . . . . Melee . | . . . . . . . Uniques/NPCs Destroyed . | . . . . . . . Combat | -11 -10 -9 -8 -7 -7 -6 -------- Run | Yrd Mat Mat Mat Fac DSF Fac Hostile Shots Fired 472 | . 13 84 110 . 97 168 Missed 161 | . 2 32 33 . 38 56 Hits 311 | . 11 52 77 . 59 112 Melee 13 | . . 4 3 . . 6 Projectile 298 | . 11 48 74 . 59 106 AOE 1 | . . . . . . 1 Critical Strikes 15 | . . 7 2 . 2 4 Damage Taken 6212 | . 109 735 1292 . 1618 2458 Core 1881 | . 15 171 177 . 635 883 Absorbed by Shields 63 | . . . . . 63 . Core Remaining (%) 65 | 100 94 57 67 . 9 . Volleys Fired 120 | . 7 41 45 . 16 11 Largest 4 | . 2 2 3 . 4 4 Hottest 150 | . 80 108 148 . 130 150 Shots Fired 327 | . 14 74 132 . 63 44 Gun 174 | . 7 45 57 . 31 34 Cannon 153 | . 7 29 75 . 32 10 Launcher . | . . . . . . . Special . | . . . . . . . Kinetic 237 | . 7 18 106 . 63 43 Thermal 82 | . 7 48 26 . . 1 Explosive . | . . . . . . . Electromagnetic 8 | . . 8 . . . . Robot Hit Streak 20 | . 7 12 20 . 5 5 Robot Miss Streak 6 | . 1 3 2 . 6 4 Penetration Max 1 | . . . . . . 1 Secondary Targets . | . . . . . . . Shots Hit Robots 208 | . 10 55 92 . 31 20 Core Hits 87 | . 5 15 38 . 17 12 Critical Kills . | . . . . . . . Critical Parts Destroyed 3 | . . 1 2 . . . Critical Strikes 16 | . 3 2 7 . 3 1 Burn 1 | . 1 . . . . . Destroy 3 | . . 1 2 . . . Blast 11 | . 2 . 5 . 3 1 Corrupt 1 | . . 1 . . . . Melee Attacks . | . . . . . . . Impact . | . . . . . . . Slashing . | . . . . . . . Piercing . | . . . . . . . Sneak Attacks . | . . . . . . . Combat Hostiles . | . . . . . . . Follow-up Attacks . | . . . . . . . Damage Inflicted 4372 | . 134 804 2088 . 755 591 Guns 2070 | . 88 339 918 . 286 439 Cannons 2216 | . 46 459 1107 . 469 135 Explosions . | . . . . . . . Melee . | . . . . . . . Ramming 86 | . . 6 63 . . 17 Kinetic 3409 | . 46 253 1799 . 755 556 Thermal 761 | . 88 429 226 . . 18 Explosive . | . . . . . . . Electromagnetic 116 | . . 116 . . . . Impact . | . . . . . . . Slashing . | . . . . . . . Piercing . | . . . . . . . Highest Corruption 11 | . . 4 . . . 11 Average Corruption 6 | . . 3 . . . 8 Corruption Purged . | . . . . . . . Corruption Blocked . | . . . . . . . Effects 7 | . . 3 . . . 4 Message Errors 1 | . . . . . . 1 Matter Fused 1 | . . 1 . . . . Heat Flow Errors 1 | . . . . . . 1 Data Loss (minor) 2 | . . 2 . . . . Misfires 1 | . . . . . . 1 Misdirections 1 | . . . . . . 1 Overload Shots . | . . . . . . . Overflow Damage . | . . . . . . . Projectiles . | . . . . . . . Explosions . | . . . . . . . Melee . | . . . . . . . Knockbacks 20 | . . 4 8 . 4 4 Impact 2 | . . . 1 . . 1 Kinetic 18 | . . 4 7 . 4 3 Secondary . | . . . . . . . Self-Inflicted Damage 7 | . . . . . . 7 Shots . | . . . . . . . Rammed 4 | . . . 2 . . 2 Targets Rammed 10 | . . 1 6 . . 3 Kicked 6 | . . 1 4 . . 1 Crushed . | . . . . . . . Highest Temperature 1821 | . 90 267 449 . 1821 210 Average Temperature 169 | . 39 69 144 . 424 79 Received Heat Transfer 1227 | . . 288 342 . 72 525 Effects 40 | . . . 5 . 35 . Shutdowns 13 | . . . 3 . 10 . Energy Bleed 3 | . . . . . 3 . Interference 7 | . . . 1 . 6 . Matter Decay 1 | . . . . . 1 . Short Circuit 3 | . . . . . 3 . Damage (minor) 4 | . . . 1 . 3 . Damage (major) 4 | . . . . . 4 . Damage (core) 5 | . . . . . 5 . Siege Activations . | . . . . . . . Martial Activations . | . . . . . . . Shielding Activations . | . . . . . . . Robots Disrupted . | . . . . . . . Combat Hostiles . | . . . . . . . Robots Corrupted 1 | . . 1 . . . . Combat Hostiles 1 | . . 1 . . . . Parts Fried 1 | . . 1 . . . . Impact Corruptions . | . . . . . . . Robots Melted . | . . . . . . . Combat Hostiles . | . . . . . . . Parts Melted 6 | . . 3 . . 3 . Heat Transferred 1697 | . 333 920 407 . . 37 Parts Sabotaged . | . . . . . . . Parts Stolen . | . . . . . . . Parts Stripped . | . . . . . . . Power Chain Reactions . | . . . . . . . Alert | -11 -10 -9 -8 -7 -7 -6 ------- Run | Yrd Mat Mat Mat Fac DSF Fac Maximum Alert Level 1 | . . . . . 1 . Low Security (%) 95 | 100 100 100 100 100 53 100 Level 1 4 | . . . . . 46 . Level 2 . | . . . . . . . Level 3 . | . . . . . . . Level 4 . | . . . . . . . Level 5 . | . . . . . . . High Security . | . . . . . . . Max Security . | . . . . . . . Sterilizations 1 | . . . . . 1 . Peak Influence 250 | . 116 195 137 29 250 170 Initial 130 | . . 40 44 29 3 130 Average 66 | . 21 86 61 7 132 87 Influence Increases 1671 | . 143 345 625 5 290 263 Destroy 0b10 Robot/C 920 | . 80 200 380 . 180 80 Destroy 0b10 Robot/NC 30 | . . . 20 . 5 5 Destroy Leader 204 | . 10 70 84 . 30 10 Successful Hack 12 | . 7 . . 5 . . Disable Machine 45 | . . 15 15 . . 15 Destroy Structure 25 | . 1 . 21 . . 3 Partial Spotted 15 | . . . . . . 15 Lose Combat Pursuer 420 | . 45 60 105 . 75 135 Influence Decreases 1603 | . 47 334 667 65 45 445 Entered New Map 277 | . . 56 63 36 2 120 Time Decay 1082 | . 47 268 533 29 . 205 Lost Part 244 | . . 10 71 . 43 120 Squads Dispatched 11 | . 2 . 3 . 3 3 Investigation 3 | . 1 . 1 . . 1 Extermination 1 | . . . . . . 1 Reinforcement 7 | . 1 . 2 . 3 1 Assault . | . . . . . . . Garrison . | . . . . . . . Intercept . | . . . . . . . Searches Triggered . | . . . . . . . Construction Impeded . | . . . . . . . Haulers Reinforced . | . . . . . . . Active Scanning Responses . | . . . . . . . Cargo Convoy Interrupts . | . . . . . . . Stealth | -11 -10 -9 -8 -7 -7 -6 --------- Run | Yrd Mat Mat Mat Fac DSF Fac Distress Signals 1 | . 1 . . . . . Communications Jammed . | . . . . . . . Distress Signals . | . . . . . . . Times Spotted 85 | . 6 14 27 . 16 22 Peak Tracking Total 9 | . 3 6 6 . 7 9 Tactical Retreats 16 | . 1 3 4 . 3 5 Traps | -11 -10 -9 -8 -7 -7 -6 ------- Run | Yrd Mat Mat Mat Fac DSF Fac Traps Triggered 11 | . 1 5 1 . 2 2 Indirectly . | . . . . . . . Trap Hack Attempts . | . . . . . . . Triggered . | . . . . . . . Disarmed . | . . . . . . . Reprogrammed . | . . . . . . . Reused . | . . . . . . . Traps Extracted . | . . . . . . . Installed . | . . . . . . . Triggered . | . . . . . . . Machines | -11 -10 -9 -8 -7 -7 -6 ---------- Run | Yrd Mat Mat Mat Fac DSF Fac Machines Disabled 3 | . . 1 1 . . 1 Max in Single Turn 1 | . . 1 1 . . 1 Machines Repaired . | . . . . . . . Machines Dismantled . | . . . . . . . Machines Sabotaged . | . . . . . . . Overloaded Fab Kills . | . . . . . . . Hacking | -11 -10 -9 -8 -7 -7 -6 --------- Run | Yrd Mat Mat Mat Fac DSF Fac Machines Accessed 11 | . 4 3 3 1 . . Terminals 7 | . 4 1 1 1 . . Fabricators . | . . . . . . . Repair Stations . | . . . . . . . Recycling Units 2 | . . 1 1 . . . Scanalyzers 2 | . . 1 1 . . . Garrison Access . | . . . . . . . Total Hacks 21 | . 8 7 5 1 . . Successful 19 | . 6 7 5 1 . . Failed 2 | . 2 . . . . . Catastrophic 1 | . 1 . . . . . Database Lockouts . | . . . . . . . Manual . | . . . . . . . Terminals 12 | . 8 1 2 1 . . Fabricators . | . . . . . . . Repair Stations . | . . . . . . . Recycling Units 3 | . . 2 1 . . . Scanalyzers 6 | . . 4 2 . . . Garrison Access . | . . . . . . . Terminal Hacks 10 | . 6 1 2 1 . . Record 7 | . 4 1 2 . . . Open DSF 1 | . . . . 1 . . Alert Level 1 | . 1 . . . . . Zone Layout 1 | . 1 . . . . . Fabricator Hacks . | . . . . . . . Repair Station Hacks . | . . . . . . . Recycling Unit Hacks 3 | . . 2 1 . . . Process 1 | . . 1 . . . . Report Inventory 2 | . . 1 1 . . . Scanalyzer 6 | . . 4 2 . . . Insert Component 2 | . . 1 1 . . . Analyze 4 | . . 3 1 . . . Garrison Access Hacks . | . . . . . . . Unauthorized Hacks . | . . . . . . . Terminals . | . . . . . . . Fabricators . | . . . . . . . Repair Stations . | . . . . . . . Recycling Units . | . . . . . . . Scanalyzers . | . . . . . . . Garrison Access . | . . . . . . . Data Cores Recovered . | . . . . . . . Used . | . . . . . . . Hacking Detections 4 | . 2 1 1 . . . Full Trace Events . | . . . . . . . Feedback Events . | . . . . . . . Feedback Blocked . | . . . . . . . Robot Schematics Acquired . | . . . . . . . Robots Built . | . . . . . . . Authchips . | . . . . . . . Time . | . . . . . . . Total Robot Build Rating . | . . . . . . . Part Schematics Acquired 2 | . . 1 1 . . . Parts Built . | . . . . . . . Authchips . | . . . . . . . Time . | . . . . . . . Total Part Build Rating . | . . . . . . . Parts Repaired . | . . . . . . . Time . | . . . . . . . Parts Recycled . | . . . . . . . Recycled Matter 4 | . . 4 . . . . Retrieved Matter . | . . . . . . . Retrieved Components . | . . . . . . . Parts Scanalyzed 2 | . . 1 1 . . . Part Schematics Acquired 2 | . . 1 1 . . . Parts Damaged . | . . . . . . . Bothacking | -11 -10 -9 -8 -7 -7 -6 ------------ Run | Yrd Mat Mat Mat Fac DSF Fac Used RIF Installer . | . . . . . . . Robots Hacked . | . . . . . . . Non-combat . | . . . . . . . Combat . | . . . . . . . Robot Hacks Applied . | . . . . . . . Relay Couplers Released . | . . . . . . . Fabnet Peak Effective % . | . . . . . . . Robots Rewired . | . . . . . . . Allies Hacked . | . . . . . . . Hacks Repelled . | . . . . . . . Allies | -11 -10 -9 -8 -7 -7 -6 -------- Run | Yrd Mat Mat Mat Fac DSF Fac Total Allies . | . . . . . . . Largest Group . | . . . . . . . Highest-Rated Group . | . . . . . . . Highest-Rated Ally . | . . . . . . . Initial Warlord ECA Mod 9 | . . . . . . 9 Total Orders . | . . . . . . . Ally Attacks . | . . . . . . . Total Damage . | . . . . . . . Kills . | . . . . . . . Allies Corrupted . | . . . . . . . Allies Melted . | . . . . . . . Intel | -11 -10 -9 -8 -7 -7 -6 ------- Run | Yrd Mat Mat Mat Fac DSF Fac Active Infowar (turns) . | . . . . . . . Robot Analysis Total . | . . . . . . . Derelict Logs Recovered . | . . . . . . . Drone Launches . | . . . . . . . Drone Recoveries . | . . . . . . . Exploration | -11 -10 -9 -8 -7 -7 -6 ------------- Run | Yrd Mat Mat Mat Fac DSF Fac Turns Passed 3822 | 97 517 617 1638 151 337 465 Spaces Moved 2354 | 69 369 352 904 79 147 434 Core 248 | 8 . . . . . 240 Treads 587 | . . . 587 . . . Legs 1519 | 61 369 352 317 79 147 194 Wheels . | . . . . . . . Hover . | . . . . . . . Flight . | . . . . . . . Fastest Speed 50 | 50 120 120 120 190 112 50 Average Speed 131 | 122 120 121 150 190 175 85 Slowest Speed 330 | 200 120 190 330 190 190 300 Overloaded Moves . | . . . . . . . Propulsion Burnouts . | . . . . . . . Robots Hopped . | . . . . . . . Potential Cave-ins . | . . . . . . . Cave-ins Triggered . | . . . . . . . Exploration Rate (%) 36 | 6 65 44 36 3 82 19 Regions Visited 6 Branch Regions . Pre-discovered Areas . | . . . . . . . Known Exits Taken 1 | . . . . 1 . . Unknown Exits Taken 4 | 1 1 1 1 . . . Scrap Searched . | . . . . . . . Spaces Dug . | . . . . . . . Terrain Destroyed 21 | . . . 18 . . 3 Melee . | . . . . . . . Projectile 21 | . . . 18 . . 3 AOE . | . . . . . . . Terrain Rammed . | . . . . . . . Walls Destroyed . | . . . . . . . Machines Disabled . | . . . . . . . Actions | -11 -10 -9 -8 -7 -7 -6 --------- Run | Yrd Mat Mat Mat Fac DSF Fac Total 2847 | 82 429 467 1085 80 195 509 Wait 174 | . 43 35 69 . 1 26 Move 2348 | 68 368 351 903 78 146 434 Hop . | . . . . . . . Pick Up 71 | 8 8 16 20 . 11 8 Fast Attach 12 | . . . 8 . 2 2 Attach 37 | 6 1 9 5 2 4 10 Detach 4 | . . . . . . 4 Swap 26 | . 1 9 9 . 4 3 Drop 43 | . 1 5 20 . 9 8 Fire 120 | . 7 41 45 . 16 11 Melee . | . . . . . . . Ram 2 | . . . . . . 2 Kick 6 | . . 1 4 . . 1 Crush 2 | . . . 2 . . . Escape Stasis 2 | . . . . . 2 . Rewire . | . . . . . . . Trap . | . . . . . . . Miscellaneous . | . . . . . . . Route ------- -11/Scrapyard -10/Materials -9/Materials (discovered 2 exits: *Mat / [*Min]) -8/Materials -7/Factory -7/DSF -6/Factory History --------- Turn | Location | Event 12 | -11/Scrapyard | Discovered new exit (range 16) 98 | -11/Scrapyard | Entered Materials 99 | -10/Materials | Met a group of wandering Federalists 309 | -10/Materials | Build established: Mutant 533 | -10/Materials | Discovered new exit (range 16) 615 | -10/Materials | Entered another Materials area 615 | -9/Materials | Evolved 2 slots: Power x1, Propulsion x1 762 | -9/Materials | Discovered new exit (range 8) 1196 | -9/Materials | Discovered new exit (range 16) 1232 | -9/Materials | Entered another Materials area 1232 | -8/Materials | Evolved 2 slots: Propulsion x1, Weapon x1 1690 | -8/Materials | Build established: Scavenger-Gunner 2867 | -8/Materials | Discovered new exit (range 5) 2870 | -8/Materials | Entered Factory 2870 | -7/Factory | Evolved 2 slots: Utility x1, Weapon x1 3021 | -7/Factory | Identified exit to DSF 3021 | -7/Factory | Entered DSF 3059 | -7/DSF | Additional patrols routed to DSF 3227 | -7/DSF | Sterilization system engaged 3247 | -7/DSF | Ambient heat levels rising (+10) 3262 | -7/DSF | Ambient heat levels rising (+10) 3277 | -7/DSF | Ambient heat levels rising (+10) 3292 | -7/DSF | Ambient heat levels rising (+10) 3307 | -7/DSF | Ambient heat levels rising (+10) 3322 | -7/DSF | Ambient heat levels rising (+10) 3337 | -7/DSF | Ambient heat levels rising (+10) 3338 | -7/DSF | Core integrity fell below 50% 3341 | -7/DSF | Discovered new exit (range 14) 3352 | -7/DSF | Ambient heat levels rising (+10) 3357 | -7/DSF | Core integrity fell below 20% 3358 | -7/DSF | Entered Factory 3358 | -6/Factory | Evolved 2 slots: Propulsion x1, Utility x1 3373 | -6/Factory | Found Launcher Loader 3641 | -6/Factory | Lost 4 parts (1n2u1w) 3711 | -6/Factory | Core integrity fell below 50% 3717 | -6/Factory | Lost 10 parts (3p4n2u1w) 3740 | -6/Factory | System corruption reached 10% 3778 | -6/Factory | Core integrity fell below 20% 3816 | -6/Factory | Spotted B-75 Beast 3823 | -6/Factory | Destroyed by B-75 Beast via exploding Nuclear Reactor Last Messages --------------- 03780_ Slammed into G-50 Soldier. 03780_ Destabilizing: Core damaged (-25). 03784_ Triggered Blade Trap. 03784_ Massive razor-sharp blades shoot up from within the floor. 03784_ Cryofiber Web severed. 03798_ Triggered Alarm Trap. 03798_ An alarm sounds. 03798_ ALERT: Alarm triggered, dispatching investigation squad. 03798_ U-05 Engineer lays Concrete. 03804_ Acquired Fusion Compressor. 03814_ K-01 Serf cleans the Nuclear Reactor. 03815_ ALERT: Security rotation in progress. 03815_ K-01 Serf cleans the Fabricator. 03817_ Knocked back. 03817_ K-01 Serf cleans the Nuclear Reactor. 03820_ Knocked back. 03821_ K-01 Serf cleans the Fabricator. 03823_ Nuclear Reactor explodes. Map ----- +----------------------------------------------------+ | ?????????????????????????????????????????????????? | | ?????????????????????????????????????????????????? | | ?????????????????????????????????????????????????? | | ?????????????????????????????????????????????????? | | ?????????????????????????????????????????????????? | | ?????????????????????????????????????????????????? | | ?????????????????????????????????????????????????? | | ?????????????????????????????????????????????????? | | ?????????????????????????????????????????????????? | | ?????????????????????????????????????????????????? | | ?????????????????????????????????????????????????? | | ??????????????????????????####???????????????????? | | ?????????????????????????? ????????????????? | | ?????????????????????????? ???????????????? | | ?????????????????????????? ????????????????? | | ?????????????????????????? ????????????????? | | ?????????????????????????? ?????????????????? | | ?????????????????????????? Ak #?????????????????? | | ??????????????????######## #?????????????????? | | ?????????????? ? ^ #?????????????????? | | ??????????????? ? ! #?????????????????? | | ????????????"?""" """ """ #?????????????????? | | ???????????"" """ """ """ u #?????????????????? | | ??????????""" """ """ """ """#?????????????????? | | ?????????? h k"""#?????????????????? | | ???????????"" k!! @ ""#?????????????????? | | ???????????"" !!! F""#?????????????????? | | ????????? """ !! """#?????????????????? | | ??????? #?????????????????? | | ??????? #???????? ????? | | ??????? ##BB;#% !% #???????# #???? | | ????????? ???#BB## #???????# #???? | | ???????????? ?????###?# l #???????# ####+ | | ??????????????????????# #???????# | | ??????????????????????# !! +???????# | | ??????????????????????# ! g #???????# | | ??????????????????????#!!p"""gg#???????# | | ??????????????????????# """ R#???????# | | ??????????????????????/u """ #???????# | | ??????????????????????# ######### | | ??????????????????????# ! | | ??????????????????????# | | ??????????????????????# "T" | | ??????????????????????#= | | ??????????????????????# | | ??????????????????????#+####/#############+####### | | ??????????????????????# ?? ?????????? ?????? | | ??????????????????????# ? ???????? ?????? | | ??????????????????????# ! ?????? ????? | | ??????????????????????# #????! ????? | +----------------------------------------------------+ Best States ------------- Heat Dissipation 37 Energy Generation 45 Energy Capacity 445 Matter Stores 300 Matter Capacity 300 Sight Range 16 Terrain Scan Density 10 Base Temperature (-) 100 Armor Coverage 225 Evasion (%) 55 Targeting Accuracy 6 Core Analysis 6 Recoil Reduction 4 Item Schematics ----------------- Lgt. Deuterium Engine | -9/Materials | Scanalyzed VSS Leg | -8/Materials | Scanalyzed Robot Schematics ------------------ None Fabricated ------------ Nothing Repaired ---------- Nothing Alien Tech Used ----------------- None Achievements -------------- Close Call Novice Programmer Challenges ------------ None Game ------ Seed WarlordVoltaicCannon Manual? 0 Play Time 01:02:33 Cumulative 15.2 hours Start 2025.09.12 @ 17:48:05 End 2025.09.12 @ 19:54:32 Sessions 1 Manual Loads 0 Difficulty Rogue Special Mode None Game No. 13 Rogue 13 Adventurer 0 Explorer 0 Win Type - Total 0 Types 0/0/0/0/0/0/0/0/0/0 Lore% 10 Gallery% 19 Achievement% 19 Wizard Run 0 Options --------- Layout 1 ASCII 0 Keyboard 0 Movement Mouse Keybinds 0 Fullscreen 1 Font 32/SmallcapsGlow Map View 50x35 Zoom Use 0% Tactical HUD 1 Map Filters NONE Filters NONE Steam 1 RUN: 911adc71-ceea-464f-8a44-7f3fda5c3c64